fUST/lending_fUST_20260113
["ID","MTS","AMOUNT","RATE_DAILY","PERIOD"]
[401611768,1768315810291,156.84,7.1e-05,2]
[401611769,1768315810382,6328.84469176,0.00014252,2]
[401611770,1768315810409,3671.16530824,0.00014252,2]
[401611771,1768315810947,156.84,7.6e-05,2]
[401611772,1768315811623,156.84,8e-05,2]
[401611773,1768315812299,156.84,8.4e-05,2]
[401611775,1768315812946,156.84,8.9e-05,2]
[401611776,1768315813362,156.84,9.3e-05,2]
[401611777,1768315814078,156.84,9.7e-05,2]
[401611778,1768315814753,156.84,0.000101,2]
[401611779,1768315815286,156.84,0.000106,2]
[401611780,1768315816049,156.84,0.00011,2]
[401611781,1768315830791,-2508.8318003,0.00015159,2]
[401611782,1768315830824,-638.0,0.00015159,2]
[401611783,1768315830855,-311.85701,0.00015231,2]
[401611801,1768315831898,-30000.0,0.00015231,2]
[401611803,1768315831908,-262.49850805,0.0001524,2]
[401611804,1768315831918,-354.19,0.00015249,3]
[401611805,1768315831929,-177.09,0.00015249,3]
[401611806,1768315831938,-531.32,0.00015249,3]
[401611807,1768315831948,-211.46960328,0.00015249,2]
[401611808,1768315831960,-88.53039672,0.00015249,2]
[401611809,1768315831969,-151.0,0.0001525,2]
[401611811,1768315831979,-250.0,0.0001525,2]
[401611812,1768315831988,-168.3888056,0.0001525,2]
[401611814,1768315831997,-151.0,0.0001525,2]
[401611816,1768315832007,-250.0,0.0001525,2]
[401611817,1768315832016,-174.61919141,0.0001525,2]
[401611818,1768315832026,-168.3888056,0.0001525,2]
[401611819,1768315832035,-250.0,0.0001525,2]
[401611820,1768315832044,-181.08010149,0.0001525,2]
[401611821,1768315832054,-250.0,0.0001525,2]
[401611822,1768315832063,-187.78006525,0.0001525,2]
[401611823,1768315832072,-194.72792766,0.0001525,2]
[401611824,1768315832081,-250.0,0.0001525,2]
[401611825,1768315832091,-461.67526834,0.0001525,2]
[401611826,1768315832100,-201.93286099,0.0001525,2]
[401611827,1768315832109,-209.40437684,0.0001525,2]
[401611828,1768315832118,-2230.315306,0.0001525,2]
[401611829,1768315832127,-217.15233878,0.0001525,2]
[401611830,1768315832136,-151.0,0.0001525,2]
[401611831,1768315832145,-225.18697532,0.0001525,2]
[401611832,1768315832154,-242.59349996,0.0001525,2]
[401611833,1768315832163,-2000.0,0.0001525,2]
[401611834,1768315832172,-2000.0,0.0001525,2]
[401611835,1768315832184,-1222.19113968,0.0001525,2]
[401611836,1768315832193,-233.51889341,0.0001525,2]
[401611837,1768315832202,-151.0,0.0001525,2]
[401611838,1768315832211,-242.15909246,0.0001525,2]
[401611839,1768315832221,-151.0,0.0001525,2]
[401611840,1768315832231,-251.11897888,0.0001525,2]
[401611841,1768315832242,-151.0,0.0001525,2]
[401611842,1768315832252,-260.4103811,0.0001525,2]
[401611843,1768315832261,-250.0,0.0001525,2]
[401611844,1768315832270,-151.0,0.0001525,2]
[401611845,1768315832279,-270.0455652,0.0001525,2]
[401611846,1768315832288,-380.99585983,0.0001525,2]
[401611847,1768315832297,-151.0,0.0001525,2]
[401611848,1768315832307,-280.03725112,0.0001525,2]
[401611849,1768315832315,-151.0,0.0001525,2]
[401611850,1768315832326,-290.39862941,0.0001525,2]
[401611851,1768315832335,-151.0,0.0001525,2]
[401611852,1768315832344,-301.1433787,0.0001525,2]
[401611853,1768315832354,-151.0,0.0001525,2]
[401611854,1768315832363,-151.0,0.0001525,2]
[401611855,1768315832373,-151.0,0.0001525,2]
[401611856,1768315832382,-151.0,0.0001525,2]
[401611857,1768315832391,-151.0,0.0001525,2]
[401611858,1768315832400,-187.96041165,0.0001525,2]
[401611859,1768315832414,-928.77192856,0.0001525,2]
[401611860,1768315832426,-1746.23643252,0.0001525,2]
[401611861,1768315832439,-678.08346952,0.0001525,2]
[401611862,1768315832450,-518.21843076,0.0001525,2]
[401611863,1768315832463,-258.04819909,0.0001525,2]
[401611865,1768315836210,155.0,0.0001,2]
[401611870,1768315837964,-750.0,0.0001525,2]
[401611871,1768315837975,-2084.87083648,0.0001525,2]
[401611872,1768315837986,-8591.0802065,0.0001525,2]
[401611873,1768315838073,-2829.92790603,0.0001525,2]
[401611874,1768315838085,-1940.85437058,0.0001525,2]
[401611875,1768315838103,-5.2039011,0.0001525,2]
[401611877,1768315838113,-428.65171728,0.00015258,2]
[401611974,1768315840254,-71.34828272,0.00015258,2]
[401611976,1768315840263,-500.0,0.00015258,2]
[401611978,1768315840272,-500.0,0.00015258,2]
[401611980,1768315840281,-500.0,0.00015258,2]
[401611982,1768315840291,-500.0,0.00015258,2]
[401611984,1768315840300,-500.0,0.00015258,2]
[401611986,1768315840309,-562.13773058,0.00015258,2]
[401611988,1768315840317,-500.0,0.00015258,2]
[401611990,1768315840327,-500.0,0.00015258,2]
[401611992,1768315840335,-500.0,0.00015258,2]
[401611994,1768315840344,-500.0,0.00015258,2]
[401611995,1768315840353,-500.0,0.00015258,2]
[401611996,1768315840362,-500.0,0.00015258,2]
[401611998,1768315840372,-500.0,0.00015258,2]
[401612000,1768315840381,-500.0,0.00015258,2]
[401612002,1768315840390,-500.0,0.00015258,2]
[401612004,1768315840403,-500.0,0.00015258,2]
[401612006,1768315840412,-500.0,0.00015258,2]
[401612008,1768315840424,-500.0,0.00015258,2]
[401612010,1768315840440,-500.0,0.00015258,2]
[401612012,1768315840449,-500.0,0.00015258,2]
[401612014,1768315840458,-500.0,0.00015258,2]
[401612016,1768315840467,-500.0,0.00015258,2]
[401612018,1768315840476,-500.0,0.00015258,2]
[401612020,1768315840485,-500.0,0.00015258,2]
[401612024,1768315840494,-500.0,0.00015258,2]
[401612026,1768315840503,-500.0,0.00015258,2]
[401612028,1768315840512,-500.0,0.00015258,2]
[401612031,1768315840521,-500.0,0.00015258,2]
[401612033,1768315840530,-500.0,0.00015258,2]
[401612035,1768315840539,-500.0,0.00015258,2]
[401612037,1768315840549,-500.0,0.00015258,2]
[401612039,1768315840558,-500.0,0.00015258,2]
[401612041,1768315840567,-500.0,0.00015258,2]
[401612043,1768315840577,-577.62455601,0.00015258,2]
[401612045,1768315840585,-500.0,0.00015258,2]
[401612047,1768315840594,-500.0,0.00015258,2]
[401612049,1768315840603,-500.0,0.00015258,2]
[401612051,1768315840612,-500.0,0.00015258,2]
[401612053,1768315840621,-500.0,0.00015258,2]
[401612055,1768315840630,-500.0,0.00015258,2]
[401612057,1768315840639,-500.0,0.00015258,2]
[401612059,1768315840648,-500.0,0.00015258,2]
[401612061,1768315840656,-500.0,0.00015258,2]
[401612063,1768315840665,-500.0,0.00015258,2]
[401612065,1768315840676,-386.96075215,0.00015258,2]
[401612067,1768315840687,-500.0,0.00015258,2]
[401612069,1768315840696,-500.0,0.00015258,2]
[401612071,1768315840705,-500.0,0.00015258,2]
[401612073,1768315840715,-500.0,0.00015258,2]
[401612075,1768315840724,-500.0,0.00015258,2]
[401612077,1768315840733,-500.0,0.00015258,2]
[401612079,1768315840742,-500.0,0.00015258,2]
[401612081,1768315840751,-500.0,0.00015258,2]
[401612083,1768315840759,-194.35423829,0.00015258,2]
[401612085,1768315840768,-500.0,0.00015258,2]
[401612087,1768315840778,-594.37229497,0.00015258,2]
[401612089,1768315840787,-35504.52085024,0.00015259,2]
[401612091,1768315840798,-30365.35633976,0.00015259,2]
[401612616,1768315845993,-652.0,0.00015259,2]
[401612621,1768315846029,-370.88638246,0.00015259,2]
[401612623,1768315846154,-9265.20245976,0.00015259,2]
[401613130,1768315851783,-7730.37640715,0.00015259,2]
[401613134,1768315851806,-9909.78073313,0.00015259,2]
[401613136,1768315851818,-4410.17029215,0.00015259,2]
[401613139,1768315851836,-787.38445668,0.00015259,2]
[401615097,1768315872432,2023.16374017,0.0001,2]
[401618108,1768315905467,181.14,0.00014954,2]
[401618136,1768315915081,500.0,0.00030136,120]
[401618139,1768315949880,999.0,0.00014344,2]
[401618142,1768315981087,500.0,0.00030136,120]
[401618143,1768315981327,470.4035816,0.00030136,120]
[401618144,1768315995714,500.0,0.00030136,120]
[401618145,1768315995958,500.0,0.00030136,120]
[401618146,1768315996215,500.0,0.00030136,120]
[401618147,1768315996468,500.0,0.00030136,120]
[401618148,1768315996887,245.06723297,0.00030136,120]
[401618151,1768316229863,800.0,0.00015049,2]
[401618152,1768316230084,800.0,0.00015046,2]
[401618153,1768316230173,800.0,0.00015067,2]
[401618154,1768316230287,800.0,0.00015034,2]
[401618155,1768316266362,-731.78831631,0.00015096,2]
[401618156,1768316335463,581.91932521,0.00014944,2]
[401618157,1768316339025,2325.34962353,0.00014944,2]
[401618158,1768316405394,498.68,5e-05,2]
[401618159,1768316405933,498.68,5.1e-05,2]
[401618161,1768316406595,498.68,5.2e-05,2]
[401618162,1768316407414,498.68,5.4e-05,2]
[401618163,1768316407685,498.68,5.5e-05,2]
[401618164,1768316408229,498.68,5.6e-05,2]
[401618165,1768316408604,498.68,5.7e-05,2]
[401618166,1768316409263,498.68,5.9e-05,2]
[401618167,1768316409991,498.68,6e-05,2]
[401618168,1768316410502,498.68,6.1e-05,2]
[401618169,1768316412287,498.68,6.2e-05,2]
[401618170,1768316412898,143.68441864,6.3e-05,2]
[401618171,1768316412927,354.99558136,6.3e-05,2]
[401618172,1768316413422,498.68,6.5e-05,2]
[401618173,1768316414079,498.68,6.6e-05,2]
[401618174,1768316414745,498.68,6.7e-05,2]
[401618175,1768316415593,498.68,6.8e-05,2]
[401618176,1768316416267,498.68,7e-05,2]
[401618177,1768316416799,498.68,7.1e-05,2]
[401618178,1768316417326,498.68,7.2e-05,2]
[401618179,1768316417841,498.68,7.3e-05,2]
[401618180,1768316418519,498.68,7.4e-05,2]
[401618181,1768316419577,498.68,7.6e-05,2]
[401618182,1768316420094,498.68,7.7e-05,2]
[401618183,1768316420609,498.68,7.8e-05,2]
[401618184,1768316421111,498.68,7.9e-05,2]
[401618185,1768316421822,498.68,8.1e-05,2]
[401618186,1768316422350,498.68,8.2e-05,2]
[401618187,1768316422862,498.68,8.3e-05,2]
[401618188,1768316423534,498.68,8.4e-05,2]
[401618189,1768316424538,498.68,8.6e-05,2]
[401618190,1768316425603,498.68,8.7e-05,2]
[401618191,1768316425982,170.09441864,8.8e-05,2]
[401618192,1768316426007,328.58558136,8.8e-05,2]
[401618193,1768316426520,498.68,8.9e-05,2]
[401618194,1768316427173,9677.34,0.0001484,2]
[401618195,1768316427210,322.67,9e-05,2]
[401618196,1768316427240,176.01,9e-05,2]
[401618197,1768316427939,498.68,9.2e-05,2]
[401618198,1768316428306,498.68,9.3e-05,2]
[401618201,1768316428820,498.68,9.4e-05,2]
[401618202,1768316429723,498.68,9.5e-05,2]
[401618203,1768316430603,498.68,9.7e-05,2]
[401618204,1768316431278,498.68,9.8e-05,2]
[401618205,1768316431937,498.68,9.9e-05,2]
[401618206,1768316432310,498.68,0.0001,2]
[401618207,1768316432988,498.68,0.000101,2]
[401618208,1768316433651,498.68,0.000103,2]
[401618209,1768316434744,498.68,0.000104,2]
[401618210,1768316435248,498.68,0.000105,2]
[401618211,1768316435899,498.68,0.000106,2]
[401618212,1768316436561,498.68,0.000108,2]
[401618213,1768316437079,498.68,0.000109,2]
[401618214,1768316437761,498.68,0.00011,2]
[401618223,1768316446426,634.94507728,0.00014413,2]
[401618224,1768316449582,2537.24052882,0.00014413,2]
[401618225,1768316464629,150.66,7.451e-05,2]
[401618226,1768316465044,175.77,7.738e-05,2]
[401618227,1768316465569,200.88,8.025e-05,2]
[401618228,1768316466004,225.99,8.311e-05,2]
[401618229,1768316466547,251.1,8.598e-05,2]
[401618230,1768316503580,181.141,0.00014856,2]
[401618231,1768316535667,2195.22782528,0.00015064,2]
[401618232,1768316568501,-638.0,0.00015126,2]
[401618233,1768316568533,-262.04423765,0.00015126,2]
[401618234,1768316568563,-177.09,0.00015149,3]
[401618235,1768316568592,-531.29,0.00015149,3]
[401618236,1768316568623,-800.0,0.00015157,2]
[401618237,1768316568653,-300.0,0.00015158,2]
[401618238,1768316582541,300.0,0.00015158,2]
[401618239,1768316586359,2668.8583886,0.00014839,2]
[401618240,1768316586399,428.65171728,0.00015158,2]
[401618241,1768316597513,171.68,6.894e-05,2]
[401618242,1768316597917,214.6,7.181e-05,2]
[401618243,1768316598328,257.52,7.469e-05,2]
[401618244,1768316598784,300.44,7.756e-05,2]
[401618245,1768316599183,241.41141882,8.043e-05,2]
[401618246,1768316599212,101.94858118,8.043e-05,2]
[401618247,1768316599619,386.28,8.33e-05,2]
[401618248,1768316600030,429.2,8.618e-05,2]
[401618249,1768316608758,500.0,0.00015158,2]
[401618250,1768316608802,476.84061897,0.00015158,2]
[401618251,1768316616309,500.0,0.00015158,2]
[401618252,1768316616360,500.0,0.00015158,2]
[401618253,1768316616405,500.0,0.00015158,2]
[401618254,1768316616466,407.7624556,0.00015158,2]
[401618255,1768316629545,270.8725265,0.00015158,2]
[401618256,1768316642760,300.0,0.00015158,2]
[401618257,1768316643920,1000.0,0.000151,2]
[401618258,1768316702265,300.0,0.00015158,2]
[401618259,1768316709222,168.3888056,0.00015159,2]
[401618260,1768316709733,461.67526834,0.00015159,2]
[401618261,1768316712276,168.3888056,0.00015159,2]
[401618262,1768316712914,174.61919141,0.00015159,2]
[401618263,1768316713542,181.08010149,0.00015159,2]
[401618264,1768316714185,187.78006525,0.00015159,2]
[401618265,1768316714360,2230.315306,0.00015159,2]
[401618266,1768316714819,194.72792766,0.00015159,2]
[401618267,1768316715463,201.93286099,0.00015159,2]
[401618268,1768316716076,209.40437684,0.00015159,2]
[401618269,1768316716340,148.79310857,0.00015159,2]
[401618270,1768316716363,17.54581731,0.00015159,2]
[401618271,1768316716711,217.15233878,0.00015159,2]
[401618272,1768316716833,9765.31184391,0.00015159,2]
[401618273,1768316716857,10000.01,0.00015159,2]
[401618274,1768316728105,-298.14690003,0.00015159,2]
[401618275,1768316732759,199.46,6.26e-05,2]
[401618276,1768316733193,299.19,6.545e-05,2]
[401618277,1768316733616,398.92,6.829e-05,2]
[401618278,1768316734036,498.65,7.114e-05,2]
[401618279,1768316734465,598.39,7.399e-05,2]
[401618280,1768316734891,698.12,7.683e-05,2]
[401618281,1768316735302,797.85,7.968e-05,2]
[401618282,1768316735733,897.58,8.252e-05,2]
[401618283,1768316736204,997.31,8.537e-05,2]
[401618284,1768316764127,381.99831871,0.00013273,2]
[401618286,1768316809313,155.94,7.098e-05,2]
[401618287,1768316809824,187.13,7.382e-05,2]
[401618288,1768316810220,218.32,7.666e-05,2]
[401618289,1768316810640,249.51,7.95e-05,2]
[401618290,1768316811083,280.7,8.234e-05,2]
[401618291,1768316811747,311.88,8.518e-05,2]
[401618293,1768316821112,1920.82434712,0.00015061,2]
[401618294,1768316823786,158.55298923,0.00013273,2]
[401618296,1768316832182,500.0,0.00013273,2]
[401618297,1768316832222,1062.42957287,0.00013821,2]
[401618298,1768316835296,500.0,0.00013273,2]
[401618299,1768316835331,1000.0,0.00013821,2]
[401618300,1768316837404,500.0,0.00013273,2]
[401618301,1768316837462,601.16084877,0.00013821,2]
[401618302,1768316841170,-300.0,0.00015157,2]
[401618303,1768316841203,-1946.05827168,0.00015158,2]
[401618304,1768316841243,-500.0,0.00015158,2]
[401618305,1768316841279,-500.0,0.00015158,2]
[401618306,1768316841315,-500.0,0.00015158,2]
[401618307,1768316841352,-500.0,0.00015158,2]
[401618308,1768316841387,-500.0,0.00015158,2]
[401618309,1768316841425,-7.89345664,0.00015158,2]
[401618310,1768316841932,-492.10654336,0.00015158,2]
[401618311,1768316841966,-500.0,0.00015158,2]
[401618312,1768316842001,-500.0,0.00015158,2]
[401618313,1768316842037,-500.0,0.00015158,2]
[401618314,1768316842068,-500.0,0.00015158,2]
[401618315,1768316842100,-500.0,0.00015158,2]
[401618316,1768316842131,-429.33586234,0.00015158,2]
[401618317,1768316842164,-500.0,0.00015158,2]
[401618318,1768316842199,-500.0,0.00015158,2]
[401618319,1768316842234,-500.0,0.00015158,2]
[401618320,1768316842404,-650.0,0.00015158,2]
[401618321,1768316842438,-500.0,0.00015158,2]
[401618322,1768316842470,-500.0,0.00015158,2]
[401618323,1768316842501,-211.97360618,0.00015158,2]
[401618324,1768316842533,-500.0,0.00015158,2]
[401618325,1768316842565,-470.91732061,0.00015158,2]
[401618326,1768316842598,-1725.34298971,0.00015159,2]
[401618327,1768316842629,-225.18697532,0.00015159,2]
[401618328,1768316842660,-199.64932295,0.00015159,2]
[401618329,1768316842693,-33.86957046,0.00015159,2]
[401618330,1768316842723,-250.0,0.00015159,2]
[401618331,1768316842753,-242.15909246,0.00015159,2]
[401618332,1768316842782,-251.11897888,0.00015159,2]
[401618333,1768316842811,-260.4103811,0.00015159,2]
[401618334,1768316842841,-270.0455652,0.00015159,2]
[401618335,1768316842871,-280.03725112,0.00015159,2]
[401618336,1768316842900,-290.39862941,0.00015159,2]
[401618337,1768316842930,-301.1433787,0.00015159,2]
[401618338,1768316859743,-5707.28700039,0.00015159,2]
[401618339,1768316859812,-10000.01,0.00015159,2]
[401618340,1768316859941,-10000.01,0.00015159,2]
[401618341,1768316860086,-10000.01,0.00015159,2]
[401618342,1768316860224,-10000.01,0.00015159,2]
[401618343,1768316860401,-10000.01,0.00015159,2]
[401618344,1768316862345,-10000.01,0.00015159,2]
[401618345,1768316862546,-10000.01,0.00015159,2]
[401618346,1768316862782,-10000.01,0.00015159,2]
[401618347,1768316862814,-10000.01,0.00015159,2]
[401618348,1768316863477,-407.71383994,0.00015159,2]
[401618349,1768316867070,-206.06148056,0.00015159,2]
[401618351,1768316870131,-252.41198484,0.00015159,2]
[401618352,1768316871558,-231.36964492,0.00015159,2]
[401618353,1768316878237,171.21,7.384e-05,2]
[401618354,1768316878690,199.74,7.668e-05,2]
[401618355,1768316879053,228.28,7.952e-05,2]
[401618356,1768316879468,256.81,8.236e-05,2]
[401618357,1768316879882,285.35,8.52e-05,2]
[401618358,1768316882694,300.0,0.00015158,2]
[401618359,1768316889961,800.0,0.00014989,2]
[401618360,1768316889993,800.0,0.00015052,2]
[401618361,1768316890025,800.0,0.0001489,2]
[401618362,1768316890185,800.0,0.00015034,2]
[401618363,1768316890216,800.0,0.0001507,2]
[401618364,1768316890246,800.0,0.00014953,2]
[401618365,1768316890277,800.0,0.00014961,2]
[401618366,1768316890323,800.0,0.00015029,2]
[401618367,1768316890360,800.0,0.00015114,2]
[401618368,1768316890404,800.0,0.00015147,2]
[401618369,1768316890440,558.62,0.00015057,2]
[401618370,1768316890467,241.38,0.00015057,2]
[401618371,1768316890502,800.0,0.00014946,2]
[401618372,1768316890538,800.0,0.00015124,2]
[401618373,1768316890570,800.0,0.00015127,2]
[401618374,1768316890610,800.0,0.0001504,2]
[401618375,1768316922657,557.77,9.99e-05,2]
[401618376,1768316922936,557.77,9.99e-05,2]
[401618378,1768316943200,300.0,0.00015158,2]
[401618379,1768316956914,354.18,0.00015149,3]
[401618380,1768316967871,1372.36518407,0.00015,3]
[401618381,1768316987942,5805.914782,0.00014362,2]
[401618382,1768317002553,300.0,0.00015158,2]
[401618383,1768317005981,212.71,5e-05,2]
[401618384,1768317006797,212.71,5.2e-05,2]
[401618385,1768317007595,212.71,5.4e-05,2]
[401618386,1768317008300,212.71,5.6e-05,2]
[401618387,1768317008980,212.71,5.8e-05,2]
[401618388,1768317009519,212.71,6e-05,2]
[401618390,1768317009835,461.67526834,0.00015159,2]
[401618391,1768317010193,212.71,6.2e-05,2]
[401618392,1768317010731,181.62823332,0.00015159,2]
[401618393,1768317011149,212.71,6.4e-05,2]
[401618394,1768317011668,212.71,6.6e-05,2]
[401618395,1768317012340,212.71,6.9e-05,2]
[401618396,1768317012863,168.3888056,0.00015159,2]
[401618397,1768317013023,212.71,7.1e-05,2]
[401618398,1768317013478,174.61919141,0.00015159,2]
[401618399,1768317013684,212.71,7.3e-05,2]
[401618400,1768317014089,181.08010149,0.00015159,2]
[401618401,1768317014286,212.71,7.5e-05,2]
[401618402,1768317014453,2230.315306,0.00015159,2]
[401618403,1768317014775,-1147.70312777,0.00015159,2]
[401618404,1768317014821,212.71,7.7e-05,2]
[401618405,1768317014860,187.78006525,0.00015159,2]
[401618406,1768317014899,-9599.51993475,0.00015159,2]
[401618407,1768317015612,212.71,7.9e-05,2]
[401618408,1768317016167,212.71,8.1e-05,2]
[401618409,1768317017058,212.71,8.3e-05,2]
[401618410,1768317017178,-194.72792766,0.00015159,2]
[401618411,1768317017208,-201.93286099,0.00015159,2]
[401618412,1768317017237,-209.40437684,0.00015159,2]
[401618413,1768317017315,-217.15233878,0.00015159,2]
[401618414,1768317017325,-8570.72733024,0.00015159,2]
[401618415,1768317017358,-10000.01,0.00015159,2]
[401618416,1768317017431,-10000.01,0.00015159,2]
[401618417,1768317017484,-251.75,0.00015159,2]
[401618418,1768317017769,212.71,8.5e-05,2]
[401618419,1768317018446,212.71,8.7e-05,2]
[401618420,1768317018978,212.71,8.9e-05,2]
[401618421,1768317019645,212.71,9.1e-05,2]
[401618422,1768317020177,212.71,9.3e-05,2]
[401618423,1768317020874,212.71,9.5e-05,2]
[401618424,1768317022470,212.71,9.7e-05,2]
[401618425,1768317023179,212.71,9.9e-05,2]
[401618426,1768317023324,-225.18697532,0.00015159,2]
[401618427,1768317023358,-233.51889341,0.00015159,2]
[401618428,1768317023390,-242.15909246,0.00015159,2]
[401618429,1768317023423,-251.11897888,0.00015159,2]
[401618430,1768317023453,-260.4103811,0.00015159,2]
[401618431,1768317023485,-270.0455652,0.00015159,2]
[401618432,1768317023517,-280.03725112,0.00015159,2]
[401618433,1768317023547,-290.39862941,0.00015159,2]
[401618434,1768317023579,-301.1433787,0.00015159,2]
[401618435,1768317023757,-5291.9717088,0.00015159,2]
[401618436,1768317023847,212.71,0.000102,2]
[401618437,1768317024364,212.71,0.000104,2]
[401618438,1768317024883,212.71,0.000106,2]
[401618439,1768317025533,212.71,0.000108,2]
[401618440,1768317026052,212.71,0.00011,2]
[401618441,1768317026296,-10000.01,0.00015159,2]
[401618442,1768317026543,-10000.01,0.00015159,2]
[401618443,1768317026698,212.71,0.000112,2]
[401618444,1768317027369,212.71,0.000114,2]
[401618445,1768317028051,212.71,0.000116,2]
[401618446,1768317028979,212.71,0.000118,2]
[401618447,1768317029668,212.71,0.00012,2]
[401618448,1768317030538,212.71,0.000122,2]
[401618449,1768317031347,212.71,0.000124,2]
[401618480,1768317032126,-557.26,0.00015159,2]
[401618483,1768317032138,-6272.99993726,0.00015159,2]
[401618485,1768317032149,-725.22320192,0.00015159,2]
[401618501,1768317032263,-10000.01,0.00015159,2]
[401618506,1768317032299,212.71,0.000126,2]
[401618562,1768317032828,212.71,0.000128,2]
[401618605,1768317033512,212.71,0.00013,2]
[401618618,1768317034485,212.71,0.000132,2]
[401618619,1768317035438,212.71,0.000135,2]
[401618620,1768317036112,212.71,0.000137,2]
[401618621,1768317036990,212.71,0.000139,2]
[401618622,1768317037661,212.71,0.000141,2]
[401618646,1768317038210,212.71,0.000143,2]
[401618652,1768317038255,-338398.06599282,0.00015159,2]
[401618654,1768317038267,-2129.12289752,0.00015159,2]
[401618660,1768317038310,-501.04879008,0.00015159,2]
[401618662,1768317038321,-3493.39,0.00015159,2]
[401618664,1768317038332,-3406.61875827,0.00015159,2]
[401618741,1768317039232,212.71,0.000145,2]
[401618753,1768317040094,212.71,0.000147,2]
[401618808,1768317040640,-3e-08,0.00015159,2]
[401618826,1768317040793,212.71,0.000149,2]
[401618908,1768317041571,212.71,0.000151,2]
[401619365,1768317046104,-723.20043215,0.00015159,2]
[401619369,1768317046137,-1337.380915,0.00015159,2]
[401619539,1768317047859,-29231.64555555,0.00015159,2]
[401620686,1768317059553,1437.949683,0.00014252,2]
[401621021,1768317063373,300.0,0.00015158,2]
[401621242,1768317065643,500.0,0.00013273,2]
[401621247,1768317065690,1000.0,0.00013821,2]
[401621252,1768317065743,1181.37091183,0.00014368,2]
[401621854,1768317073011,-605.70402077,0.00015159,2]
[401622108,1768317075659,-436.42864136,0.00015159,2]
[401622310,1768317077610,-298.30615314,0.00015159,2]
[401622392,1768317078388,500.0,0.00015158,2]
[401622399,1768317078442,565.6773626,0.00015158,2]
[401622526,1768317079876,174.45,8.869e-05,2]
[401622571,1768317080302,199.37,9.198e-05,2]
[401622615,1768317080727,224.29,9.526e-05,2]
[401622656,1768317081144,249.21,9.855e-05,2]
[401623346,1768317096199,545.09995,0.00015158,2]
[401623347,1768317101841,1680.72130373,0.00015059,2]
[401623348,1768317103562,181.14101356,0.00015061,2]
[401623349,1768317122855,300.0,0.00015158,2]
[401623350,1768317126671,500.0,0.00013699,2]
[401623351,1768317132910,-414.1445263,0.00015159,2]
[401623352,1768317134721,-380.0154737,0.00015159,2]
[401623353,1768317147561,177.87,8.255e-05,2]
[401623354,1768317147968,213.44,8.585e-05,2]
[401623355,1768317148383,69.41977528,8.915e-05,2]
[401623356,1768317148411,179.60022472,8.915e-05,2]
[401623357,1768317148940,284.59,9.245e-05,2]
[401623358,1768317149387,320.17,9.575e-05,2]
[401623359,1768317149793,355.74,9.905e-05,2]
[401623360,1768317182537,300.0,0.00015158,2]
[401623361,1768317191194,1125.14,0.00015158,2]
[401623362,1768317191437,1125.14,0.00015158,2]
[401623363,1768317191682,1125.14,0.00015158,2]
[401623364,1768317191939,1125.14,0.00015158,2]